fUSD/lending_fUSD_20250221
["ID","MTS","AMOUNT","RATE_DAILY","PERIOD"]
[354010335,1740179510429,-500.0,0.0001347,2]
[354010336,1740179510438,-1097.72,0.00013476,2]
[354010337,1740179510448,-10304.2370897,0.00013481,2]
[354010338,1740179510459,-4038.7455119,0.00013481,2]
[354010339,1740179510469,-264281.84834433,0.0001349,2]
[354010340,1740179510479,-5320.63202711,0.0001349,2]
[354010341,1740179510489,-10155.0464138,0.00013491,2]
[354010342,1740179510498,-4212.4365047,0.00013491,2]
[354010343,1740179510507,-5818.3834887,0.00013491,2]
[354010344,1740179510516,-150.0,0.00013491,2]
[354010345,1740179510525,-150.0,0.00013491,2]
[354010346,1740179510534,-150.0,0.00013491,2]
[354010347,1740179510544,-150.0,0.00013491,2]
[354010348,1740179510553,-884.61378193,0.00013491,2]
[354010349,1740179510562,-347.60379759,0.00013491,2]
[354010350,1740179510572,-8824.86272384,0.00013491,2]
[354010351,1740179510838,-1505.77451608,0.00013491,2]
[354010352,1740179510927,-500.0,0.00011367,2]
[354010353,1740179510937,-673.82,0.00011616,2]
[354010354,1740179510947,-101.4331778,0.00011696,2]
[354010355,1740179510958,-398.5668222,0.00011696,2]
[354010356,1740179510968,-500.0,0.00012107,2]
[354010357,1740179510977,-75.2416551,0.00013491,2]
[354010358,1740179510987,-774.75778885,0.00013491,2]
[354010359,1740179510998,-232.1696244,0.00013491,2]
[354010360,1740179511008,-1235.6924891,0.00013491,2]
[354010361,1740179511020,-403.4556333,0.00013491,2]
[354010362,1740179511029,-2484.53461447,0.00013498,2]
[354010363,1740179511040,-379.9422459,0.00013498,2]
[354010364,1740179511051,-2826.84764586,0.00013498,2]
[354010365,1740179511214,-500.0,0.00011449,2]
[354010366,1740179511224,-500.0,0.00011531,2]
[354010367,1740179511234,-500.0,0.00011613,2]
[354010368,1740179511244,-500.0,0.00011696,2]
[354010369,1740179511253,-673.82,0.00011698,2]
[354010370,1740179511263,-500.0,0.00011778,2]
[354010371,1740179511273,-673.82,0.0001178,2]
[354010372,1740179511282,-500.0,0.0001186,2]
[354010373,1740179511292,-673.82,0.00011862,2]
[354010374,1740179511302,-500.0,0.00011942,2]
[354010375,1740179511311,-673.82,0.00011944,2]
[354010376,1740179511321,-500.0,0.00012189,2]
[354010377,1740179511330,-641.04081373,0.00012271,2]
[354010378,1740179511340,-744.84,0.00012929,2]
[354010379,1740179511349,-43459.55826253,0.00013498,2]
[354010380,1740179511359,-224048.96197702,0.00013498,2]
[354010381,1740179511368,-2772221.10718236,0.000135,5]
[354010382,1740179511378,-150.0,0.000135,2]
[354010383,1740179511388,-287370.08,0.000135,5]
[354010384,1740179511397,-1000.0,0.000135,2]
[354010385,1740179511407,-413.75,0.000135,2]
[354010386,1740179511416,-607.84886978,0.000135,2]
[354010387,1740179511426,-961.02803623,0.00013507,2]
[354010388,1740179511435,-300.0,0.0001351,2]
[354010389,1740179511445,-1488.27,0.00013518,2]
[354010390,1740179511455,-195.37,0.00013561,2]
[354010391,1740179511466,-961.02803623,0.00013562,2]
[354010392,1740179511475,-10005.8557379,0.00013591,2]
[354010393,1740179511485,-4386.1274975,0.00013591,2]
[354010394,1740179511557,-6034.0986639,0.00013591,2]
[354010395,1740179511567,-1699.9191467,0.00013591,2]
[354010396,1740179511576,-1800.0,0.00013592,2]
[354010397,1740179511586,-1900.0,0.00013592,2]
[354010398,1740179511595,-700.0,0.00013592,2]
[354010399,1740179511604,-2640260.58212495,0.000136,2]
[354010400,1740179511613,-131729.56081392,0.000136,2]
[354010401,1740179511623,-4000.0,0.000136,2]
[354010402,1740179511633,-1097.72,0.00013613,2]
[354010403,1740179511643,-961.02803623,0.00013644,2]
[354010404,1740179511653,-157.87181461,0.00013644,2]
[354010405,1740179511663,-877.41,0.00013656,2]
[354010406,1740179511673,-19306.86958097,0.00013678,2]
[354010407,1740179511682,-1457.50754358,0.00013697,2]
[354010408,1740179511692,-5800.0,0.00013698,2]
[354010409,1740179511702,-5800.0,0.00013698,2]
[354010410,1740179511712,-548.28027706,0.00013698,2]
[354010411,1740179511721,-500.0,0.00013698,2]
[354010412,1740179511731,-500.0,0.00013698,2]
[354010413,1740179511740,-500.0,0.00013698,2]
[354010414,1740179511750,-500.0,0.00013698,2]
[354010415,1740179511760,-500.0,0.00013698,2]
[354010416,1740179511770,-500.0,0.00013698,2]
[354010417,1740179511779,-500.0,0.00013698,2]
[354010418,1740179511789,-500.0,0.00013698,2]
[354010419,1740179511798,-500.0,0.00013698,2]
[354010420,1740179511807,-500.0,0.00013698,2]
[354010421,1740179511816,-500.0,0.00013698,2]
[354010422,1740179511826,-500.0,0.00013698,2]
[354010423,1740179511835,-500.0,0.00013698,2]
[354010424,1740179511845,-576.37054517,0.00013698,2]
[354010425,1740179511858,-1000.0,0.00013698,2]
[354010426,1740179511868,-1000.0,0.00013698,2]
[354010427,1740179511877,-1000.0,0.00013698,2]
[354010428,1740179511887,-1000.0,0.00013698,2]
[354010429,1740179511896,-1000.0,0.00013698,2]
[354010430,1740179511906,-1000.0,0.00013698,2]
[354010431,1740179511915,-1000.0,0.00013698,2]
[354010432,1740179511924,-1000.0,0.00013698,2]
[354010433,1740179511933,-1000.0,0.00013698,2]
[354010434,1740179511943,-1000.0,0.00013698,2]
[354010435,1740179511952,-1000.0,0.00013698,3]
[354010436,1740179511962,-3158.06,0.00013698,2]
[354010437,1740179511971,-3158.06,0.00013698,2]
[354010438,1740179511981,-3158.06,0.00013698,2]
[354010439,1740179511990,-3158.06,0.00013698,2]
[354010440,1740179512000,-3158.06,0.00013698,2]
[354010441,1740179512009,-3158.06,0.00013698,2]
[354010442,1740179512019,-3158.06,0.00013698,2]
[354010443,1740179512029,-3158.06,0.00013698,2]
[354010444,1740179512038,-3158.06,0.00013698,2]
[354010445,1740179512047,-3158.06,0.00013698,2]
[354010446,1740179512056,-3158.06,0.00013698,2]
[354010447,1740179512065,-3158.06,0.00013698,2]
[354010448,1740179512074,-3158.06,0.00013698,2]
[354010449,1740179512084,-3158.06,0.00013698,2]
[354010450,1740179512093,-3158.06,0.00013698,2]
[354010451,1740179512102,-3158.06,0.00013698,2]
[354010452,1740179512112,-3158.06,0.00013698,2]
[354010453,1740179512121,-3158.06,0.00013698,2]
[354010454,1740179512131,-3158.06,0.00013698,2]
[354010455,1740179512141,-3158.06,0.00013698,2]
[354010456,1740179512150,-3158.06,0.00013698,2]
[354010457,1740179512160,-3158.06,0.00013698,2]
[354010458,1740179512170,-3158.06,0.00013698,2]
[354010459,1740179512179,-3158.18436891,0.00013698,2]
[354010460,1740179512188,-1000.0,0.00013698,2]
[354010461,1740179512197,-1000.0,0.00013698,2]
[354010462,1740179512207,-1000.0,0.00013698,2]
[354010463,1740179512216,-1000.0,0.00013698,2]
[354010464,1740179512226,-1000.0,0.00013698,2]
[354010465,1740179512235,-1000.0,0.00013698,2]
[354010466,1740179512244,-1000.0,0.00013698,2]
[354010467,1740179512253,-1000.0,0.00013698,2]
[354010468,1740179512263,-1000.0,0.00013698,2]
[354010469,1740179512272,-1000.0,0.00013698,2]
[354010470,1740179512281,-500.0,0.00013699,2]
[354010471,1740179512290,-500.0,0.00013699,2]
[354010472,1740179512299,-500.0,0.00013699,2]
[354010473,1740179512308,-500.0,0.00013699,2]
[354010474,1740179512317,-500.0,0.00013699,2]
[354010475,1740179512327,-500.0,0.00013699,2]
[354010476,1740179512337,-500.0,0.00013699,2]
[354010477,1740179512346,-202.30039854,0.00013699,7]
[354010478,1740179512355,-961.02803623,0.00013699,2]
[354010479,1740179512363,-4000.0,0.00013699,2]
[354010480,1740179512373,-150.0,0.00013699,2]
[354010481,1740179512382,-399.5,0.00013699,2]
[354010482,1740179512391,-500.0,0.00013699,2]
[354010483,1740179512400,-151.0,0.00013699,2]
[354010484,1740179512409,-151.0,0.00013699,2]
[354010485,1740179512418,-151.0,0.00013699,2]
[354010486,1740179512428,-151.0,0.00013699,2]
[354010487,1740179512437,-151.0,0.00013699,2]
[354010488,1740179512446,-151.0,0.00013699,2]
[354010489,1740179512456,-151.0,0.00013699,2]
[354010490,1740179512466,-151.0,0.00013699,2]
[354010491,1740179512475,-151.0,0.00013699,2]
[354010492,1740179512484,-151.0,0.00013699,2]
[354010493,1740179512494,-151.0,0.00013699,2]
[354010494,1740179512503,-151.0,0.00013699,2]
[354010495,1740179512512,-151.0,0.00013699,2]
[354010496,1740179512521,-151.0,0.00013699,2]
[354010497,1740179512531,-151.0,0.00013699,2]
[354010498,1740179512540,-151.0,0.00013699,2]
[354010499,1740179512549,-151.0,0.00013699,2]
[354010500,1740179512558,-151.0,0.00013699,2]
[354010501,1740179512567,-285.747542,0.00013699,2]
[354010502,1740179512576,-6861.15,0.00013699,2]
[354010503,1740179512585,-200.0,0.00013699,2]
[354010504,1740179512594,-500.0,0.00013699,2]
[354010505,1740179512604,-500.0,0.00013699,2]
[354010506,1740179512613,-532.48391005,0.00013699,2]
[354010507,1740179512622,-500.0,0.00013699,2]
[354010508,1740179512631,-500.0,0.00013699,2]
[354010509,1740179512640,-500.0,0.00013699,2]
[354010510,1740179512649,-160.59829277,0.00013699,2]
[354010511,1740179512659,-316.50105965,0.00013699,2]
[354010512,1740179512667,-159.81974567,0.00013699,2]
[354010513,1740179512676,-519.19839196,0.00013699,2]
[354010514,1740179512685,-358.54936083,0.00013699,2]
[354010515,1740179512694,-324.73960018,0.00013699,2]
[354010516,1740179512704,-151.82875838,0.00013699,2]
[354010517,1740179512713,-500.0,0.00013699,2]
[354010518,1740179512721,-518.14552616,0.00013699,2]
[354010519,1740179512730,-500.0,0.00013699,2]
[354010520,1740179512740,-500.0,0.00013699,2]
[354010521,1740179512749,-500.0,0.00013699,2]
[354010522,1740179512759,-207.37774765,0.00013699,2]
[354010523,1740179512768,-161.64682875,0.00013699,2]
[354010524,1740179512777,-500.0,0.00013699,2]
[354010525,1740179512786,-2000.0,0.00013699,2]
[354010526,1740179512795,-42130.90025192,0.000137,2]
[354010527,1740179512804,-3204.41,0.000137,2]
[354010528,1740179512813,-263908.32073729,0.000137,5]
[354010529,1740179512822,-344.0,0.000137,2]
[354010530,1740179512831,-1200.0,0.000137,2]
[354010531,1740179512840,-3978.45,0.000137,2]
[354010532,1740179512853,-215.0,0.0001372,2]
[354010533,1740179512862,-1097.72,0.0001375,2]
[354010534,1740179512871,-210.31,0.00013763,2]
[354010535,1740179512881,-177.538389,0.0001378,2]
[354010536,1740179512890,-170.004919,0.0001378,2]
[354010537,1740179512900,-884157.69956229,0.000138,2]
[354010538,1740179512909,-204.0,0.000138,2]
[354010539,1740179512918,-204.0,0.000138,2]
[354010540,1740179512928,-204.0,0.000138,2]
[354010541,1740179512939,-204.0,0.000138,2]
[354010542,1740179512949,-204.0,0.000138,2]
[354010543,1740179512959,-204.0,0.000138,2]
[354010544,1740179512968,-204.0,0.000138,2]
[354010545,1740179512978,-204.0,0.000138,2]
[354010546,1740179512988,-203.0,0.000138,2]
[354010547,1740179512998,-215.0,0.000138,2]
[354010548,1740179513007,-215.0,0.000138,2]
[354010549,1740179513017,-215.0,0.000138,2]
[354010550,1740179513026,-215.0,0.000138,2]
[354010551,1740179513036,-215.0,0.000138,2]
[354010552,1740179513046,-215.0,0.000138,2]
[354010553,1740179513056,-215.0,0.000138,2]
[354010554,1740179513065,-215.0,0.000138,2]
[354010555,1740179513075,-215.0,0.000138,2]
[354010556,1740179513084,-215.0,0.000138,2]
[354010557,1740179513093,-215.0,0.000138,2]
[354010558,1740179513103,-217.0,0.000138,2]
[354010559,1740179513112,-216.0,0.000138,2]
[354010560,1740179513123,-281.0,0.000138,2]
[354010561,1740179513132,-482.56432207,0.000138,2]
[354010562,1740179513142,-157.87181461,0.00013836,2]
[354010563,1740179513151,-175.41312735,0.00013836,2]
[354010564,1740179513160,-19554.75999178,0.00013858,2]
[354010565,1740179513171,-1060.0,0.0001387,2]
[354010566,1740179513180,-1097.72,0.00013887,2]
[354010567,1740179513190,-1760.690171,0.0001389,2]
[354010568,1740179513199,-1481.04853127,0.000139,2]
[354010569,1740179513209,-44125.15305705,0.000139,2]
[354010570,1740179513218,-10001.56207715,0.000139,2]
[354010571,1740179513227,-300.0,0.000139,5]
[354010572,1740179513237,-500.0,0.00013972,2]
[354010573,1740179513247,-606.87,0.00013972,2]
[354010574,1740179513256,-825.91,0.00013972,2]
[354010575,1740179513267,-646.65,0.00013972,3]
[354010576,1740179513276,-263.11969102,0.00013973,2]
[354010577,1740179513286,-263.11969102,0.00013973,2]
[354010578,1740179513296,-263.11969102,0.00013973,2]
[354010579,1740179513305,-263.11969102,0.00013973,2]
[354010580,1740179513315,-6249.8138391,0.0001399,2]
[354010581,1740179513325,-564.6057264,0.00014,2]
[354010582,1740179513335,-777.751274,0.00014,4]
[354010583,1740179513344,-5000.0,0.00014,5]
[354010584,1740179513354,-500.0,0.00014,3]
[354010585,1740179513364,-2095.0,0.00014,2]
[354010586,1740179513374,-700.0,0.00014,2]
[354010587,1740179513384,-650.0,0.00014,2]
[354010588,1740179513393,-999.0,0.00014,2]
[354010589,1740179513403,-999.0,0.00014,2]
[354010590,1740179513412,-999.0,0.00014,2]
[354010591,1740179513422,-999.0,0.00014,2]
[354010592,1740179513432,-999.0,0.00014,2]
[354010593,1740179513442,-999.0,0.00014,2]
[354010594,1740179513452,-999.0,0.00014,2]
[354010595,1740179513463,-999.0,0.00014,2]
[354010596,1740179513473,-999.0,0.00014,2]
[354010597,1740179513483,-999.0,0.00014,2]
[354010598,1740179513493,-268.26999999,0.00014,2]
[354010599,1740179513503,-5342.84463019,0.00014,2]
[354010600,1740179513512,-1705.16633584,0.00014,4]
[354010601,1740179513522,-33700.24200576,0.00014,2]
[354010602,1740179513531,-1097.72,0.00014024,2]
[354010603,1740179513541,-157.87181461,0.00014027,2]
[354010604,1740179513551,-175.41312735,0.00014027,2]
[354010605,1740179513561,-263.11969101,0.00014027,2]
[354010606,1740179513571,-150.0,0.00014059,2]
[354010607,1740179513580,-195.38,0.00014063,2]
[354010608,1740179513590,-1097.72,0.00014161,2]
[354010609,1740179513600,-157.87181461,0.00014192,2]
[354010610,1740179513610,-175.41312735,0.00014192,2]
[354010611,1740179513619,-8077.29,0.00014195,7]
[354010612,1740179513628,-8077.29,0.00014195,7]
[354010613,1740179513638,-8077.29,0.00014195,7]
[354010614,1740179513649,-8077.29,0.00014195,7]
[354010615,1740179513659,-2177.48824094,0.0001421,7]
[354010616,1740179513669,-4000.0,0.0001422,2]
[354010617,1740179513679,-209.16688501,0.00014246,2]
[354010618,1740179513689,-606.87,0.00014246,2]
[354010619,1740179513699,-825.91,0.00014246,2]
[354010620,1740179513709,-1000.0,0.00014247,2]
[354010621,1740179513719,-742.16239205,0.00014247,2]
[354010622,1740179513729,-1000.0,0.00014247,2]
[354010623,1740179513739,-1000.0,0.00014247,2]
[354010624,1740179513749,-1000.0,0.00014247,2]
[354010625,1740179513758,-1000.0,0.00014247,2]
[354010626,1740179513768,-692.98359355,0.00014247,2]
[354010627,1740179513778,-1000.0,0.00014247,2]
[354010628,1740179513789,-607.78120687,0.00014247,2]
[354010629,1740179513801,-1162.4,0.00014269,2]
[354010630,1740179513811,-1097.72,0.00014298,2]
[354010631,1740179513821,-500.0,0.000143,5]
[354010632,1740179513832,-113184.0,0.00014322,2]
[354010633,1740179513842,-150.0,0.00014356,4]
[354010634,1740179513856,-1131.81549417,0.0001441,2]
[354010635,1740179513867,-150.0,0.0001442,2]
[354010636,1740179513877,-1097.72,0.00014435,2]
[354010637,1740179513887,-8077.29,0.00014469,7]
[354010638,1740179513896,-8077.29,0.00014469,7]
[354010639,1740179513906,-5000.0,0.000145,10]
[354010640,1740179513915,-12002.64232507,0.000145,3]
[354010641,1740179513925,-5551.0,0.000145,5]
[354010642,1740179513936,-1000.0,0.00014518,2]
[354010643,1740179513945,-606.87,0.0001452,2]
[354010644,1740179513955,-825.91,0.0001452,2]
[354010645,1740179513964,-152.0,0.00014537,3]
[354010646,1740179513975,-1060.0,0.00014564,2]
[354010647,1740179513985,-195.37,0.00014566,2]
[354010648,1740179513995,-1097.72,0.00014572,2]
[354010649,1740179514006,-2260.0,0.00014645,2]
[354010650,1740179514016,-150.0,0.00014701,4]
[354010651,1740179514026,-880.1,0.00014708,2]
[354010652,1740179514036,-1551.36,0.00014708,2]
[354010653,1740179514045,-1097.72,0.00014709,2]
[354010654,1740179514055,-500.0,0.00014712,2]
[354010655,1740179514064,-8077.29,0.00014743,7]
[354010656,1740179514074,-8077.29,0.00014743,7]
[354010657,1740179514084,-8000.0,0.00014748,4]
[354010658,1740179514093,-240.88899848,0.00014759,2]
[354010659,1740179514105,-150.83040693,0.00014773,2]
[354010660,1740179514115,-152.0,0.00014779,4]
[354010661,1740179514125,-9856.6650619,0.0001478,2]
[354010662,1740179514135,-4559.8184904,0.0001478,2]
[354010663,1740179514145,-150.0,0.0001478,2]
[354010664,1740179514154,-296196.34189995,0.0001479,7]
[354010665,1740179514186,-500.0,0.00012024,2]
[354010666,1740179514198,-18714.38933933,0.0001479,7]
[354010667,1740179514290,-500.0,0.00011778,2]
[354010668,1740179514300,-247.17064609,0.0001186,2]
[354010669,1740179514312,-252.82935391,0.0001186,2]
[354010670,1740179514321,-500.0,0.00011942,2]
[354010671,1740179514331,-673.82,0.00012027,2]
[354010672,1740179514341,-500.0,0.00012107,2]
[354010673,1740179514351,-307.45162306,0.00012109,2]
[354010674,1740179514381,-301.616,0.00012024,2]
[354010675,1740179514393,-198.384,0.00012024,2]
[354010676,1740179514403,-366.36837694,0.00012109,2]
[354010677,1740179514413,-611.19,0.00012189,2]
[354010678,1740179514423,-593.70937706,0.00012191,2]
[354010679,1740179514435,-80.11062294,0.00012191,2]
[354010680,1740179514444,-673.82,0.00012273,2]
[354010681,1740179514455,-325842.32338818,0.0001479,7]
[354010682,1740179514467,-26012.14706377,0.0001479,7]
[354010683,1740179514490,-673.82,0.00012355,2]
[354010684,1740179514500,-981.83,0.0001479,7]
[354010685,1740179514511,-933.975,0.0001479,7]
[354010686,1740179514523,-2625.0367,0.0001479,7]
[354010687,1740179514814,-500.0,0.00011039,2]
[354010688,1740179514824,-500.0,0.00011039,2]
[354010689,1740179514833,-500.0,0.00011039,2]
[354010690,1740179514843,-500.0,0.00011121,2]
[354010691,1740179514857,-500.0,0.00011121,2]
[354010692,1740179514867,-500.0,0.00011204,2]
[354010693,1740179514876,-500.0,0.00012107,2]
[354010694,1740179514886,-260.2,0.00012189,2]
[354010695,1740179514895,-673.82,0.00012438,2]
[354010696,1740179514906,-673.82,0.0001252,2]
[354010697,1740179514915,-673.82,0.00012602,2]
[354010698,1740179514925,-673.82,0.00012684,2]
[354010699,1740179514935,-673.82,0.00012766,2]
[354010700,1740179514945,-673.82,0.00012849,2]
[354010701,1740179514954,-673.97,0.00012931,2]
[354010702,1740179514964,-399.75205002,0.0001479,7]
[354010703,1740179514992,-500.0,0.00011121,2]
[354010704,1740179515002,-500.0,0.00011204,2]
[354010705,1740179515012,-28086.59959121,0.0001479,7]
[354010706,1740179515023,-612.34305062,0.0001479,7]
[354010707,1740179515034,-451.23409272,0.0001479,7]
[354010708,1740179587114,104620.09303141,0.0002,120]
[354010709,1740179763140,1493.56,8.286e-05,2]
[354010710,1740179971021,523.16,8.767e-05,2]
[354010712,1740180279500,550.0,0.0001,2]
[354010713,1740180308435,10918.65,0.0001,2]
[354010714,1740180308463,13485.37,0.0001,2]
[354010715,1740180308493,4692.23404172,0.0001,2]
[354010716,1740180308521,7029.6,0.0001,2]
[354010717,1740180308549,13485.37,0.0001,2]
[354010718,1740180319905,1790.2804873,9e-05,2]
[354010740,1740180631628,-232.48,9.852e-05,2]
[354010741,1740180631638,-318.05239168,9.941e-05,2]
[354010745,1740180631691,-0.12234288,9.941e-05,2]
[354010746,1740180631704,-491.54765712,9.945e-05,2]
[354010747,1740180631765,-3808.97234288,9.945e-05,2]
[354010748,1740180631775,-2080.61,9.978e-05,2]
[354010749,1740180631785,-150.0,9.999e-05,2]
[354010750,1740180631794,-85252.42110229,0.0001,2]
[354010751,1740180631804,-963.87847588,0.0001,2]
[354010752,1740180631950,-217.35147376,0.0001,2]
[354010753,1740180631960,-2040.53307714,0.0001,2]
[354010754,1740180632007,-583.32405185,0.0001,2]
[354010755,1740180632019,-958.27880894,0.0001,2]
[354010756,1740180632031,-629.63474753,0.0001,2]
[354010757,1740180632042,-4541.35728561,0.0001,2]
[354010758,1740180632064,-34472.95914225,0.0001,2]
[354011296,1740180637685,-500.0,9.992e-05,2]
[354011297,1740180637695,-75478.01366071,0.0001,2]
[354011298,1740180637707,-77456.5750311,0.0001,2]
[354011299,1740180637718,-15358.54571962,0.0001,2]
[354011300,1740180637732,-9602.7,0.0001,2]
[354011301,1740180637778,-29971.60738097,0.0001,2]
[354011302,1740180637789,-1004.15157994,0.0001,2]
[354011375,1740180640607,-1000.0,9.9e-05,2]
[354011376,1740180640616,-23490.89216045,0.0001,2]
[354011377,1740180640627,-35684.50328488,0.0001,2]
[354011378,1740180640639,-500.0,0.0001,2]
[354011379,1740180640650,-7387.66373082,0.0001,2]
[354011380,1740180640661,-992.78414107,0.0001,2]
[354011381,1740180640673,-2467.30921759,0.0001,2]
[354011382,1740180640686,-609.5,0.0001,2]
[354011383,1740180640697,-6006.66,0.0001,2]
[354011384,1740180640709,-2010.43213369,0.0001,2]
[354011385,1740180640721,-774.6985844,0.0001,2]
[354011386,1740180640732,-1983.1999998,0.0001,2]
[354011387,1740180640743,-573.67999995,0.0001,2]
[354011388,1740180640754,-4293.62821645,0.0001,2]
[354011389,1740180640765,-4918.9999998,0.0001,2]
[354011390,1740180640776,-2495.58714316,0.0001,2]
[354011391,1740180640788,-555.3625364,0.0001,2]
[354011392,1740180640799,-386.59132447,0.0001,2]
[354011393,1740180640810,-6754.7107173,0.0001,2]
[354011394,1740180640822,-41829.20494383,0.0001,2]
[354011395,1740180640833,-351.03411824,0.0001,2]
[354011396,1740180640844,-19916.36998089,0.0001,2]
[354011397,1740180640857,-1025.87379101,0.0001,2]
[354011398,1740180641538,-2648.61540634,0.0001,2]
[354011399,1740180641550,-1179.325,0.0001,2]
[354011400,1740180641562,-367.03000001,0.0001,2]
[354011401,1740180641596,-98804.92483115,0.0001,2]
[354011402,1740180641605,-23900.0,0.00010041,2]
[354011403,1740180641615,-1000.0,0.0001007,2]
[354011404,1740180641624,-250.0,0.00010176,2]
[354011405,1740180641633,-1135.63,0.0001018,2]
[354011406,1740180641643,-691.08,0.00010194,2]
[354011407,1740180641653,-32200.89,0.00010257,2]
[354011408,1740180641662,-160.93,0.00010271,2]
[354011409,1740180641672,-5861.32,0.00010417,2]
[354011410,1740180641681,-625.49,0.00010424,2]
[354011411,1740180641691,-1493.56,0.0001055,2]
[354011412,1740180641700,-2000.0,0.00010648,2]
[354011413,1740180641710,-1200.0,0.00010852,2]
[354011414,1740180641719,-1300.0,0.00010852,2]
[354011415,1740180641728,-733.4818,0.00010938,2]
[354011416,1740180641738,-3078.1611,0.00010939,2]
[354011417,1740180641747,-1216.3832,0.00010939,2]
[354011418,1740180641756,-5000.0,0.00010939,2]
[354011419,1740180641765,-40495.4889,0.00010939,2]
[354011420,1740180641775,-500.0,0.00010958,2]
[354011421,1740180641784,-944.98,0.00010958,2]
[354011422,1740180641793,-500.0,0.00010958,2]
[354011423,1740180641803,-602.43,0.00010958,2]
[354011424,1740180641813,-500.0,0.00010958,2]
[354011425,1740180641822,-726.8,0.00010958,2]
[354011426,1740180641844,-500.0,0.00010958,2]
[354011427,1740180641867,-500.0,0.00010958,2]
[354011428,1740180641889,-500.0,0.00010958,2]
[354011429,1740180641911,-500.0,0.00010958,2]
[354011430,1740180641934,-500.0,0.00010958,2]
[354011431,1740180641955,-1601.17,0.00010958,2]
[354011432,1740180641977,-500.0,0.00010958,2]
[354011433,1740180642001,-500.0,0.00010958,2]
[354011434,1740180642024,-561.26,0.00010958,2]
[354011435,1740180642045,-500.0,0.00010958,2]
[354011436,1740180642070,-686.26,0.00010958,2]
[354011438,1740180642091,-658.34,0.00010958,2]
[354011440,1740180642109,-1257.33,0.00010958,2]
[354011442,1740180642119,-786.53,0.00010958,2]
[354011443,1740180642128,-796.14,0.00010958,2]
[354011444,1740180642140,-671.55,0.00010958,2]
[354011445,1740180642149,-500.0,0.00010958,2]
[354011446,1740180642158,-500.0,0.00010958,2]
[354011447,1740180642167,-500.0,0.00010958,2]
[354011448,1740180642176,-578.65,0.00010958,2]
[354011449,1740180642186,-2368.54,0.00010958,2]
[354011450,1740180642196,-500.0,0.00010958,2]
[354011451,1740180642206,-500.0,0.00010958,2]
[354011452,1740180642217,-500.0,0.00010958,2]
[354011453,1740180642227,-500.0,0.00010958,2]
[354011454,1740180642236,-500.0,0.00010958,2]
[354011455,1740180642245,-500.0,0.00010958,2]
[354011456,1740180642255,-500.0,0.00010958,2]
[354011457,1740180642264,-153.4736478,0.00010958,2]
[354011458,1740180642274,-500.0,0.00010958,2]
[354011459,1740180642284,-500.0,0.00010958,2]
[354011460,1740180642293,-500.0,0.00010958,2]
[354011461,1740180642302,-500.0,0.00010958,2]
[354011462,1740180642312,-619.4,0.00010958,2]
[354011463,1740180642321,-527.9,0.00010958,2]
[354011464,1740180642331,-500.0,0.00010958,2]
[354011465,1740180642340,-500.0,0.00010958,2]
[354011466,1740180642350,-500.0,0.00010958,2]
[354011467,1740180642359,-527.7343114,0.00010958,2]
[354011468,1740180642369,-500.0,0.00010958,2]
[354011469,1740180642378,-155.834979,0.00010958,2]
[354011470,1740180642388,-500.0,0.00010958,2]
[354011471,1740180642398,-163.91,0.00010959,2]